fUST/lending_fUST_20250529
["ID","MTS","AMOUNT","RATE_DAILY","PERIOD"]
[362836832,1748481043065,-176.493064,0.00020415,2]
[362836835,1748481043075,-551.558239,0.00020415,2]
[362836838,1748481043084,-551.558239,0.00020415,2]
[362836841,1748481043094,-551.558239,0.00020415,2]
[362836844,1748481043103,-551.558239,0.00020415,2]
[362836847,1748481043112,-551.558239,0.00020415,2]
[362836849,1748481043121,-551.558239,0.00020415,2]
[362836851,1748481043131,-551.558239,0.00020415,2]
[362836853,1748481043140,-551.558239,0.00020415,2]
[362836855,1748481043149,-151.0,0.00020415,2]
[362836857,1748481043158,-151.0,0.00020415,2]
[362836859,1748481043168,-151.0,0.00020415,2]
[362836861,1748481043177,-151.0,0.00020415,2]
[362836863,1748481043186,-151.0,0.00020415,2]
[362836865,1748481043201,-151.0,0.00020415,2]
[362836867,1748481043211,-151.0,0.00020415,2]
[362836868,1748481043220,-151.0,0.00020415,2]
[362836869,1748481043230,-151.0,0.00020415,2]
[362836870,1748481043240,-151.0,0.00020415,2]
[362836871,1748481043249,-191.202874,0.00020415,2]
[362836872,1748481043259,-1167.986448,0.00020415,2]
[362836873,1748481043269,-1167.986448,0.00020415,2]
[362836874,1748481043279,-1167.986448,0.00020415,2]
[362836875,1748481043288,-1167.986448,0.00020415,2]
[362836876,1748481043297,-1167.986448,0.00020415,2]
[362836877,1748481043307,-1167.986448,0.00020415,2]
[362836878,1748481043317,-1167.986448,0.00020415,2]
[362836879,1748481043326,-1167.986443,0.00020415,2]
[362836880,1748481043336,-163.406229,0.00020415,2]
[362836881,1748481043345,-163.406229,0.00020415,2]
[362836882,1748481043355,-163.406229,0.00020415,2]
[362836883,1748481043365,-163.406229,0.00020415,2]
[362836884,1748481043375,-163.406229,0.00020415,2]
[362836885,1748481043385,-163.406227,0.00020415,2]
[362836886,1748481043395,-205.202281,0.00020415,2]
[362836887,1748481043405,-205.202281,0.00020415,2]
[362836888,1748481043414,-205.202281,0.00020415,2]
[362836889,1748481043424,-205.202281,0.00020415,2]
[362836890,1748481043433,-208.845886,0.00020415,2]
[362836891,1748481043442,-208.845886,0.00020415,2]
[362836892,1748481043452,-208.845886,0.00020415,2]
[362836893,1748481043461,-208.845886,0.00020415,2]
[362836894,1748481043471,-205.202281,0.00020415,2]
[362836895,1748481043482,-205.202281,0.00020415,2]
[362836896,1748481043491,-205.202281,0.00020415,2]
[362836898,1748481043501,-205.202281,0.00020415,2]
[362836900,1748481043511,-208.845886,0.00020415,2]
[362836901,1748481043520,-208.845886,0.00020415,2]
[362836902,1748481043529,-208.845886,0.00020415,2]
[362836903,1748481043539,-208.845886,0.00020415,2]
[362836904,1748481043547,-151.0,0.00020415,2]
[362836905,1748481043557,-151.0,0.00020415,2]
[362836906,1748481043566,-151.0,0.00020415,2]
[362836907,1748481043576,-245.643742,0.00020415,2]
[362836908,1748481043585,-151.0,0.00020415,2]
[362836909,1748481043595,-151.0,0.00020415,2]
[362836910,1748481043604,-151.0,0.00020415,2]
[362836911,1748481043613,-151.0,0.00020415,2]
[362836912,1748481043623,-298.6022,0.00020415,2]
[362836913,1748481043632,-1118.020371,0.00020415,2]
[362836914,1748481043641,-1118.020371,0.00020415,2]
[362836915,1748481043651,-1118.020371,0.00020415,2]
[362836916,1748481043660,-1118.020375,0.00020415,2]
[362836917,1748481043669,-151.0,0.00020415,2]
[362836918,1748481043678,-151.0,0.00020415,2]
[362836919,1748481043687,-189.028512,0.00020415,2]
[362836920,1748481043697,-406.61733712,0.00020416,2]
[362836921,1748481043706,-406.18013634,0.00020416,2]
[362836922,1748481043715,-899.377463,0.00020416,2]
[362836923,1748481043724,-899.377463,0.00020416,2]
[362836924,1748481043734,-151.0,0.00020416,2]
[362836925,1748481043743,-151.0,0.00020416,2]
[362836926,1748481043752,-151.0,0.00020416,2]
[362836927,1748481043761,-213.715885,0.00020416,2]
[362836928,1748481043771,-151.0,0.00020416,2]
[362836929,1748481043779,-176.493064,0.00020416,2]
[362836930,1748481043789,-176.493064,0.00020416,2]
[362836931,1748481043798,-551.558239,0.00020416,2]
[362836932,1748481043808,-551.558239,0.00020416,2]
[362836933,1748481043817,-12658.7678854,0.00020451,3]
[362836934,1748481043826,-314.74726623,0.00020451,3]
[362836935,1748481043836,-899.377463,0.00020452,2]
[362836936,1748481043846,-899.377463,0.00020452,2]
[362836937,1748481043855,-151.0,0.00020452,2]
[362836938,1748481043865,-285.955427,0.00020452,2]
[362836939,1748481043874,-151.0,0.00020452,2]
[362836940,1748481043883,-151.0,0.00020452,2]
[362836941,1748481043893,-176.493064,0.00020452,2]
[362836942,1748481043902,-176.493061,0.00020452,2]
[362836943,1748481043912,-551.558239,0.00020452,2]
[362836944,1748481043922,-551.558233,0.00020452,2]
[362836945,1748481043931,-151.0,0.00020452,2]
[362836946,1748481043940,-151.0,0.00020452,2]
[362836947,1748481043950,-205.202281,0.00020452,2]
[362836948,1748481043960,-208.845886,0.00020452,2]
[362836949,1748481043970,-205.202283,0.00020452,2]
[362836950,1748481043980,-208.845882,0.00020452,2]
[362836951,1748481043990,-151.0,0.00020452,2]
[362836952,1748481043999,-212.66609673,0.00020482,2]
[362836953,1748481044009,-160.0,0.00020483,2]
[362836954,1748481044018,-423.24161968,0.00020483,2]
[362836955,1748481044028,-842.5625,0.00020483,2]
[362836956,1748481044037,-160.0,0.00020483,2]
[362836957,1748481044047,-160.0,0.00020483,2]
[362836958,1748481044057,-229.229959,0.00020483,2]
[362836959,1748481044066,-160.0,0.00020483,2]
[362836960,1748481044077,-314.74726623,0.00020483,2]
[362836961,1748481044087,-12658.7678854,0.00020483,2]
[362836962,1748481044097,-3124.35,0.0002049,2]
[362836963,1748481044107,-430.0,0.00020551,2]
[362836964,1748481044117,-752.79,0.00020551,2]
[362836965,1748481044127,-488.92,0.00020551,2]
[362836966,1748481044137,-667.49,0.00020551,2]
[362836967,1748481044146,-635.07,0.00020551,2]
[362836968,1748481044158,-430.0,0.00020552,2]
[362836969,1748481044167,-430.0,0.00020552,2]
[362836970,1748481044176,-430.0,0.00020553,2]
[362836971,1748481044186,-430.0,0.00020553,2]
[362836972,1748481044199,-430.0,0.00020553,2]
[362836973,1748481044208,-430.0,0.00020553,2]
[362836974,1748481044218,-549.15,0.00020554,2]
[362836975,1748481044228,-650.46,0.00020554,2]
[362836976,1748481044238,-430.0,0.00020554,2]
[362836977,1748481044248,-1000.0,0.00020648,2]
[362836978,1748481044257,-306.0,0.00020678,2]
[362836979,1748481044267,-352.6662838,0.00020678,2]
[362836980,1748481044278,-571.9742255,0.00020678,2]
[362836981,1748481044288,-430.0,0.00020687,2]
[362836982,1748481044298,-430.0,0.00020687,2]
[362836983,1748481044308,-430.0,0.00020689,2]
[362836984,1748481044318,-151.0,0.00020689,2]
[362836985,1748481044328,-274.437,0.00020735,2]
[362836986,1748481044338,-639.55038236,0.00020759,2]
[362836987,1748481044349,-176.3331419,0.00020778,2]
[362836988,1748481044359,-153.0,0.00020778,2]
[362836989,1748481044369,-158.368211,0.00020778,2]
[362836990,1748481044378,-571.9742255,0.00020778,2]
[362836991,1748481044387,-153.0,0.00020778,2]
[362836992,1748481044397,-176.3331419,0.00020778,2]
[362836993,1748481044407,-571.9742255,0.00020778,2]
[362836994,1748481044416,-1000.0,0.00020779,2]
[362836995,1748481044518,-1000.0,0.00020779,2]
[362836996,1748481044528,-430.0,0.00020825,2]
[362836997,1748481044537,-752.79,0.00020825,2]
[362836998,1748481044546,-667.49,0.00020825,2]
[362836999,1748481044557,-635.07,0.00020825,2]
[362837000,1748481044566,-430.0,0.00020826,2]
[362837001,1748481044573,-430.0,0.00020826,2]
[362837002,1748481044582,-344.97,0.00020827,2]
[362837003,1748481044591,-430.0,0.00020827,2]
[362837004,1748481044600,-430.0,0.00020827,2]
[362837005,1748481044610,-430.0,0.00020827,2]
[362837006,1748481044619,-549.15,0.00020828,2]
[362837007,1748481044627,-650.46,0.00020828,2]
[362837008,1748481044636,-430.0,0.00020828,2]
[362837009,1748481044646,-639.55038236,0.00020886,2]
[362837010,1748481044655,-1000.0,0.000209,2]
[362837011,1748481044663,-501.52744538,0.000209,2]
[362837012,1748481044672,-206.04996276,0.000209,4]
[362837013,1748481044682,-151.0,0.00020927,2]
[362837014,1748481044691,-151.0,0.00020927,2]
[362837015,1748481044700,-899.377463,0.00020927,2]
[362837016,1748481044709,-899.377463,0.00020927,2]
[362837017,1748481044718,-151.0,0.00020927,2]
[362837018,1748481044726,-430.0,0.00020961,2]
[362837019,1748481044735,-430.0,0.00020963,2]
[362837020,1748481044744,-275.775849,0.00020965,2]
[362837021,1748481044753,-275.775849,0.00020965,2]
[362837022,1748481044762,-151.0,0.00020965,2]
[362837023,1748481044771,-151.0,0.00020965,2]
[362837024,1748481044779,-430.0,0.00021099,2]
[362837025,1748481044788,-752.79,0.00021099,2]
[362837026,1748481044797,-667.49,0.00021099,2]
[362837027,1748481044806,-635.07,0.00021099,2]
[362837028,1748481044816,-430.0,0.000211,2]
[362837029,1748481044825,-430.0,0.000211,2]
[362837030,1748481044835,-430.0,0.00021101,2]
[362837031,1748481044844,-430.0,0.00021101,2]
[362837032,1748481044854,-430.0,0.00021101,2]
[362837033,1748481044863,-549.15,0.00021102,2]
[362837034,1748481044872,-650.46,0.00021102,2]
[362837035,1748481044882,-204.13575669,0.00021102,2]
[362837036,1748481044892,-639.55038236,0.00021133,2]
[362837037,1748481044900,-420.0,0.00021147,2]
[362837038,1748481044910,-420.0,0.00021147,2]
[362837039,1748481044919,-800.0,0.00021164,2]
[362837040,1748481044929,-571.9742255,0.00021178,2]
[362837041,1748481044939,-176.3331419,0.00021178,2]
[362837042,1748481044949,-158.3064961,0.00021178,2]
[362837043,1748481044959,-153.0,0.00021178,2]
[362837044,1748481044968,-176.3331419,0.00021178,2]
[362837045,1748481044978,-311.8992567,0.00021178,2]
[362837046,1748481044987,-338.8644328,0.00021178,2]
[362837047,1748481044996,-171.5776208,0.00021178,2]
[362837048,1748481045005,-571.9742255,0.00021178,2]
[362837049,1748481045015,-153.0,0.00021178,2]
[362837050,1748481045024,-176.3331419,0.00021178,2]
[362837051,1748481045034,-176.3331419,0.00021178,2]
[362837052,1748481045043,-153.0,0.00021178,2]
[362837053,1748481045052,-176.3331419,0.00021178,2]
[362837054,1748481045062,-153.0,0.00021178,2]
[362837055,1748481045071,-178.6033813,0.00021178,2]
[362837056,1748481045080,-153.0,0.00021178,2]
[362837057,1748481045090,-236.535339,0.00021178,2]
[362837058,1748481045100,-153.0,0.00021178,2]
[362837059,1748481045109,-153.0,0.00021178,2]
[362837060,1748481045119,-206.04996269,0.00021208,4]
[362837061,1748481045128,-173.18,0.00021235,2]
[362837062,1748481045137,-371.484195,0.00021236,2]
[362837063,1748481045147,-151.0,0.00021238,2]
[362837064,1748481045156,-899.377463,0.00021238,2]
[362837065,1748481045166,-899.377463,0.00021238,2]
[362837066,1748481045176,-1138.24278703,0.00021327,2]
[362837067,1748481045186,-430.0,0.00021373,2]
[362837069,1748481045199,-752.79,0.00021373,2]
[362837070,1748481045209,-667.49,0.00021373,2]
[362837071,1748481045219,-635.07,0.00021373,2]
[362837072,1748481045228,-430.0,0.00021374,2]
[362837073,1748481045239,-430.0,0.00021374,2]
[362837075,1748481045248,-430.0,0.00021375,2]
[362837076,1748481045259,-430.0,0.00021375,2]
[362837077,1748481045270,-430.0,0.00021375,2]
[362837078,1748481045280,-549.15,0.00021376,2]
[362837079,1748481045290,-650.46,0.00021376,2]
[362837080,1748481045299,-1500.0,0.00021448,2]
[362837082,1748481045308,-165.699647,0.00021461,3]
[362837084,1748481045319,-6248.71,0.00021466,2]
[362837086,1748481045329,-639.55038245,0.0002149,2]
[362837088,1748481045338,-275.775849,0.0002151,2]
[362837089,1748481045348,-275.775849,0.0002151,2]
[362837090,1748481045359,-151.0,0.0002151,2]
[362837092,1748481045369,-225.275714,0.0002151,2]
[362837094,1748481045379,-151.0,0.00021512,2]
[362837095,1748481045389,-151.0,0.00021512,2]
[362837097,1748481045399,-151.0,0.00021512,2]
[362837099,1748481045409,-151.0,0.00021513,2]
[362837100,1748481045418,-206.04996269,0.00021515,5]
[362837101,1748481045428,-899.377463,0.000216,2]
[362837102,1748481045438,-899.377463,0.000216,2]
[362837103,1748481045447,-430.0,0.00021647,2]
[362837104,1748481045457,-752.79,0.00021647,2]
[362837105,1748481045467,-667.49,0.00021647,2]
[362837106,1748481045477,-635.07,0.00021647,2]
[362837107,1748481045487,-430.0,0.00021648,2]
[362837108,1748481045496,-430.0,0.00021648,2]
[362837109,1748481045506,-223.67,0.00021649,2]
[362837110,1748481045516,-430.0,0.00021649,2]
[362837111,1748481045526,-430.0,0.00021649,2]
[362837112,1748481045535,-549.15,0.0002165,2]
[362837113,1748481045544,-650.46,0.0002165,2]
[362837114,1748481045554,-207.4,0.00021686,2]
[362837115,1748481045563,-503.66403513,0.00021686,2]
[362837116,1748481045572,-176.112768,0.00021756,2]
[362837117,1748481045582,-176.112768,0.00021756,2]
[362837118,1748481045591,-151.0,0.00021756,2]
[362837120,1748481045603,-2727.98,0.00021775,3]
[362837121,1748481045612,-1364.0,0.00021775,3]
[362837122,1748481045621,-682.0,0.00021775,3]
[362837123,1748481045629,-341.0,0.00021775,3]
[362837124,1748481045639,-253.853664,0.00021786,2]
[362837125,1748481045647,-253.853664,0.00021786,2]
[362837126,1748481045658,-1000.0,0.000218,4]
[362837127,1748481045666,-1000.0,0.000218,5]
[362837128,1748481045676,-1000.0,0.000218,6]
[362837129,1748481045686,-206.04996269,0.00021823,6]
[362837130,1748481045695,-151.0,0.00021895,2]
[362837132,1748481045704,-275.775849,0.00021895,2]
[362837134,1748481045713,-275.775849,0.00021895,2]
[362837135,1748481045722,-151.0,0.00021895,2]
[362837137,1748481045731,-5000.0,0.00021896,2]
[362837138,1748481045741,-1799.59,0.000219,2]
[362837139,1748481045751,-151.0,0.000219,2]
[362837140,1748481045760,-151.0,0.000219,2]
[362837141,1748481045769,-151.0,0.000219,2]
[362837142,1748481045778,-151.0,0.000219,2]
[362837143,1748481045788,-151.0,0.000219,2]
[362837144,1748481045798,-3000.0,0.000219,2]
[362837145,1748481045808,-151.0,0.000219,2]
[362837146,1748481045817,-151.0,0.000219,2]
[362837147,1748481045827,-899.377463,0.000219,2]
[362837148,1748481045837,-899.377459,0.000219,2]
[362837149,1748481045850,-151.0,0.000219,2]
[362837150,1748481045859,-302.0,0.000219,2]
[362837151,1748481045869,-151.0,0.0002191,2]
[362837153,1748481045878,-3000.0,0.0002191,2]
[362837155,1748481045887,-253.853664,0.0002191,2]
[362837156,1748481045897,-253.853664,0.0002191,2]
[362837157,1748481045906,-151.0,0.00021917,2]
[362837158,1748481045915,-176.112768,0.00021917,2]
[362837159,1748481045925,-176.112768,0.00021917,2]
[362837160,1748481045934,-275.775849,0.00021917,2]
[362837161,1748481045944,-275.775849,0.00021917,2]
[362837162,1748481045953,-151.0,0.00021917,2]
[362837163,1748481045962,-182.806896,0.00021917,2]
[362837164,1748481045971,-151.0,0.00021917,2]
[362837165,1748481045980,-151.0,0.00021917,2]
[362837166,1748481045989,-500.0,0.00021917,2]
[362837167,1748481045998,-151.0,0.0002192,7]
[362837168,1748481046007,-243.915912,0.0002192,7]
[362837169,1748481046016,-3000.0,0.0002192,2]
[362837170,1748481046025,-430.0,0.00021921,2]
[362837171,1748481046035,-752.79,0.00021921,2]
[362837172,1748481046044,-667.49,0.00021921,2]
[362837173,1748481046054,-635.07,0.00021921,2]
[362837174,1748481046063,-430.0,0.00021922,2]
[362837175,1748481046072,-430.0,0.00021922,2]
[362837176,1748481046081,-151.0,0.00021923,7]
[362837177,1748481046090,-430.0,0.00021923,2]
[362837178,1748481046103,-430.0,0.00021923,2]
[362837179,1748481046112,-549.15,0.00021924,2]
[362837180,1748481046121,-650.46,0.00021924,2]
[362837181,1748481046130,-3000.0,0.0002193,2]
[362837182,1748481046140,-253.853664,0.0002193,7]
[362837183,1748481046149,-253.853664,0.0002193,7]
[362837184,1748481046159,-151.0,0.00021939,7]
[362837185,1748481046169,-151.0,0.0002194,7]
[362837186,1748481046179,-3000.0,0.0002194,2]
[362837187,1748481046188,-2000.0,0.00021942,2]
[362837188,1748481046201,-198.670855,0.00021942,7]
[362837189,1748481046211,-151.0,0.00021942,7]
[362837190,1748481046221,-257.344732,0.0002195,7]
[362837191,1748481046231,-151.0,0.0002195,2]
[362837192,1748481046241,-151.0,0.0002195,7]
[362837193,1748481046251,-151.0,0.0002195,7]
[362837194,1748481046260,-151.0,0.0002195,7]
[362837195,1748481046271,-151.0,0.0002195,7]
[362837196,1748481046280,-3000.0,0.0002195,2]
[362837197,1748481046289,-253.853664,0.0002195,7]
[362837198,1748481046299,-253.853664,0.0002195,7]
[362837199,1748481046308,-3000.0,0.0002196,2]
[362837200,1748481046317,-3000.0,0.0002197,2]
[362837201,1748481046330,-275.775849,0.0002197,7]
[362837202,1748481046339,-275.775849,0.0002197,7]
[362837203,1748481046352,-151.0,0.0002197,7]
[362837204,1748481046361,-151.0,0.00021972,7]
[362837205,1748481046370,-151.0,0.00021972,7]
[362837206,1748481046379,-151.0,0.00021972,7]
[362837207,1748481046389,-151.0,0.00021972,7]
[362837208,1748481046398,-151.0,0.00021972,7]
[362837209,1748481046408,-151.0,0.00021972,2]
[362837210,1748481046417,-151.0,0.00021972,7]
[362837211,1748481046426,-151.0,0.00021972,7]
[362837212,1748481046435,-151.0,0.00021972,7]
[362837213,1748481046444,-151.0,0.00021972,7]
[362837214,1748481046453,-151.0,0.00021972,7]
[362837215,1748481046462,-151.0,0.00021972,7]
[362837216,1748481046471,-176.112768,0.00021972,7]
[362837217,1748481046481,-176.112768,0.00021972,7]
[362837218,1748481046491,-176.112768,0.00021972,7]
[362837219,1748481046499,-176.112768,0.00021972,7]
[362837220,1748481046508,-152.235506,0.00021972,7]
[362837221,1748481046517,-151.0,0.00021972,7]
[362837222,1748481046526,-275.775849,0.00021972,7]
[362837223,1748481046536,-275.775849,0.00021972,7]
[362837224,1748481046545,-253.853664,0.00021972,7]
[362837225,1748481046555,-253.853664,0.00021972,7]
[362837226,1748481046564,-253.853664,0.00021972,7]
[362837227,1748481046574,-253.853664,0.00021972,7]
[362837228,1748481046583,-253.853664,0.00021972,7]
[362837229,1748481046592,-253.853664,0.00021972,7]
[362837230,1748481046603,-151.0,0.00021972,7]
[362837231,1748481046612,-2000.0,0.00021972,2]
[362837232,1748481046621,-2000.0,0.00021972,2]
[362837233,1748481046631,-2000.0,0.00021972,2]
[362837234,1748481046640,-2000.0,0.00021972,2]
[362837235,1748481046649,-2000.0,0.00021972,2]
[362837236,1748481046658,-2000.0,0.00021972,2]
[362837237,1748481046667,-2000.0,0.00021972,2]
[362837238,1748481046677,-2000.0,0.00021972,2]
[362837239,1748481046686,-2000.0,0.00021972,2]
[362837240,1748481046695,-2000.0,0.00021972,2]
[362837241,1748481046704,-2000.0,0.00021972,2]
[362837242,1748481046713,-1467.61371758,0.00021972,2]
[362837243,1748481046722,-500.0,0.00021973,2]
[362837244,1748481046731,-470.73642684,0.00021973,2]
[362837245,1748481046740,-500.0,0.00021973,2]
[362837246,1748481046835,-500.0,0.00021973,2]
[362837247,1748481046847,-500.0,0.00021973,2]
[362837248,1748481046857,-500.0,0.00021973,2]
[362837249,1748481046866,-535.61328147,0.00021973,2]
[362837250,1748481046875,-600.0,0.00021973,2]
[362837251,1748481046885,-500.0,0.00021973,2]
[362837252,1748481046895,-500.0,0.00021973,2]
[362837253,1748481046904,-419.10983659,0.00021973,2]
[362837254,1748481046913,-501.1941326,0.00021973,2]
[362837255,1748481046923,-500.0,0.00021973,2]
[362837256,1748481046933,-500.0,0.00021973,2]
[362837257,1748481046942,-500.0,0.00021973,2]
[362837258,1748481046952,-500.0,0.00021973,2]
[362837259,1748481046961,-422.78467075,0.00021973,2]
[362837260,1748481046971,-501.85869539,0.00021973,2]
[362837261,1748481046980,-253.853664,0.00021973,7]
[362837262,1748481046990,-253.853664,0.00021973,7]
[362837263,1748481046999,-3000.0,0.0002198,2]
[362837264,1748481047009,-12658.7678854,0.0002198,7]
[362837265,1748481047018,-314.74726623,0.0002198,7]
[362837266,1748481047027,-3000.0,0.0002199,2]
[362837267,1748481047037,-500.0,0.00021995,2]
[362837268,1748481047046,-500.0,0.00021995,2]
[362837269,1748481047055,-2000.0,0.00021996,2]
[362837270,1748481047064,-403.67887199,0.00022,5]
[362837271,1748481047074,-2000.0,0.00022,2]
[362837272,1748481047083,-29087.0,0.00022,5]
[362837273,1748481047092,-151.0,0.00022,7]
[362837274,1748481047102,-151.0,0.00022,7]
[362837275,1748481047111,-151.0,0.00022,7]
[362837276,1748481047120,-151.0,0.00022,7]
[362837277,1748481047130,-151.0,0.00022,7]
[362837278,1748481047139,-151.0,0.00022,7]
[362837279,1748481047149,-151.0,0.00022,7]
[362837280,1748481047158,-151.0,0.00022,7]
[362837281,1748481047167,-233.750677,0.00022,7]
[362837282,1748481047176,-151.0,0.00022,2]
[362837283,1748481047186,-151.0,0.00022,7]
[362837284,1748481047197,-151.42789,0.00022,7]
[362837285,1748481047207,-151.0,0.00022,7]
[362837286,1748481047216,-151.0,0.00022,7]
[362837287,1748481047225,-21446.91358476,0.00022,2]
[362837288,1748481047322,-8184.8095003,0.00022,2]
[362837289,1748481047334,-1108.71237851,0.00022,2]
[362837290,1748481047440,-1793.56453643,0.00022,2]
[362837291,1748481047450,-176.112768,0.00022,7]
[362837292,1748481047460,-176.112768,0.00022,7]
[362837293,1748481047470,-3000.0,0.00022,2]
[362837294,1748481047479,-151.0,0.00022,7]
[362837295,1748481047489,-3507.06,0.00022,7]
[362837296,1748481047499,-275.775849,0.00022,7]
[362837297,1748481047508,-275.775849,0.00022,7]
[362837298,1748481047517,-275.775849,0.00022,7]
[362837299,1748481047526,-275.775849,0.00022,7]
[362837300,1748481047535,-253.853664,0.00022,7]
[362837301,1748481047545,-253.853664,0.00022,7]
[362837302,1748481047554,-6154.12,0.00022,7]
[362837303,1748481047563,-253.853664,0.00022,7]
[362837304,1748481047572,-253.853674,0.00022,7]
[362837305,1748481047581,-151.0,0.00022,7]
[362837306,1748481047590,-151.0,0.00022,7]
[362837307,1748481047602,-200.0,0.00022,2]
[362837308,1748481047611,-314.74726623,0.00022,7]
[362837309,1748481047619,-285.0,0.00022,2]
[362837310,1748481047629,-3000.0,0.0002201,2]
[362837311,1748481047637,-176.112768,0.0002202,7]
[362837312,1748481047646,-176.112768,0.0002202,7]
[362837313,1748481047655,-3000.0,0.0002202,2]
[362837314,1748481047664,-151.0,0.0002203,2]
[362837315,1748481047673,-151.0,0.0002203,7]
[362837316,1748481047683,-3000.0,0.0002203,2]
[362837317,1748481047692,-180.740931,0.0002203,7]
[362837318,1748481047702,-3000.0,0.0002204,2]
[362837319,1748481047711,-151.0,0.0002205,7]
[362837320,1748481047720,-3000.0,0.0002205,2]
[362837321,1748481047729,-298.804,0.0002206,2]
[362837322,1748481047738,-3000.0,0.0002206,2]
[362837323,1748481047747,-275.775849,0.0002206,7]
[362837324,1748481047757,-275.775849,0.0002206,7]
[362837325,1748481047766,-151.0,0.0002206,7]
[362837326,1748481047775,-151.0,0.00022062,7]
[362837327,1748481047785,-151.0,0.00022062,7]
[362837328,1748481047794,-151.0,0.00022068,7]
[362837329,1748481047804,-151.0,0.00022068,2]
[362837330,1748481047813,-151.0,0.00022068,7]
[362837331,1748481047822,-151.0,0.0002207,7]
[362837332,1748481047831,-3000.0,0.0002207,2]
[362837333,1748481047840,-222.794378,0.0002208,7]
[362837334,1748481047851,-3000.0,0.0002208,2]
[362837335,1748481047860,-275.775849,0.0002208,7]
[362837336,1748481047869,-275.775852,0.0002208,7]
[362837337,1748481047878,-151.0,0.0002208,7]
[362837338,1748481047887,-2000.0,0.00022086,2]
[362837339,1748481047896,-3000.0,0.0002209,2]
[362837340,1748481047906,-3000.0,0.000221,2]
[362837341,1748481047916,-3000.0,0.0002211,2]
[362837342,1748481047925,-1099.91868146,0.0002212,2]
[362837343,1748481048070,-376.52930003,0.00019456,2]
[362837344,1748481048080,-500.0,0.00019456,2]
[362837345,1748481048089,-500.0,0.00019456,2]
[362837346,1748481048100,-500.0,0.00019456,2]
[362837347,1748481048109,-170.25800078,0.00019456,2]
[362837348,1748481048119,-500.0,0.00019456,2]
[362837349,1748481048129,-500.0,0.00019519,2]
[362837350,1748481048138,-500.0,0.00019519,2]
[362837351,1748481048148,-500.0,0.00019519,2]
[362837352,1748481048157,-500.0,0.00019519,2]
[362837353,1748481048167,-300.54361432,0.00019519,2]
[362837354,1748481048177,-571.9742255,0.00020356,2]
[362837355,1748481048187,-1900.08131854,0.0002212,2]
[362837356,1748481048200,-3000.0,0.0002213,2]
[362837357,1748481048210,-206.04996269,0.00022131,6]
[362837358,1748481048219,-151.0,0.0002214,7]
[362837359,1748481048229,-151.0,0.0002214,7]
[362837360,1748481048238,-3000.0,0.0002214,2]
[362837361,1748481048248,-205.046486,0.0002215,2]
[362837362,1748481048257,-151.0,0.0002215,7]
[362837363,1748481048267,-176.112768,0.0002215,7]
[362837364,1748481048276,-176.112768,0.0002215,7]
[362837365,1748481048285,-3000.0,0.0002215,2]
[362837366,1748481048295,-151.0,0.0002216,7]
[362837367,1748481048304,-151.0,0.0002216,7]
[362837368,1748481048313,-3000.0,0.0002216,2]
[362837369,1748481048323,-3000.0,0.0002217,2]